bitfinex-derivatives/quotes_BTCF0:USTF0_20240830
["timestamp","ask_amount","ask_price","bid_price","bid_amount"]
[1725039224824,0.34266834,58567.0,58566.0,0.00125606]
[1725039226229,0.34266834,58567.0,58566.0,0.08663406]
[1725039226230,0.05729234,58567.0,58566.0,0.08663406]
[1725039227622,0.05729234,58567.0,58566.0,0.09663406]
[1725039227810,0.05729234,58567.0,58566.0,0.08663406]
[1725039228422,1.30108434,58567.0,58566.0,0.00125606]
[1725039228858,1.30108434,58567.0,58552.0,0.0046]
[1725039228859,0.170784,58556.0,58552.0,0.0046]
[1725039228932,0.170784,58556.0,58545.0,0.446208]
[1725039228933,0.085403,58549.0,58545.0,0.446208]
[1725039229223,0.2,58547.0,58545.0,0.085408]
[1725039229424,0.2,58547.0,58544.0,0.022]
[1725039229812,0.3953462,58547.0,58544.0,0.022]
[1725039230018,0.4807512,58547.0,58544.0,0.022]
[1725039230423,0.4807512,58547.0,58546.0,0.05161529]
[1725039231525,0.5420298,58547.0,58546.0,0.001]
[1725039231828,0.55051868,58547.0,58546.0,0.001]
[1725039233123,0.46511368,58547.0,58544.0,0.022]
[1725039233428,0.085408,58545.0,58544.0,0.022]
[1725039234123,0.2807542,58545.0,58544.0,0.3828]
[1725039234315,0.1953462,58545.0,58544.0,0.3828]
[1725039234515,0.10154179,58547.0,58545.0,0.085408]
[1725039234726,0.25128,58546.0,58545.0,0.085408]
[1725039236233,0.26028,58546.0,58545.0,0.085408]
[1725039236866,0.26928,58546.0,58545.0,0.085408]
[1725039237536,0.085408,58545.0,58544.0,0.3828]
[1725039237738,0.2807542,58545.0,58544.0,0.022]
[1725039237951,0.085408,58545.0,58544.0,0.022]
[1725039238237,0.7269622,58545.0,58544.0,0.022]
[1725039238430,1.8594022,58545.0,58544.0,0.022]
[1725039238924,0.085413,58542.0,58541.0,0.00025606]
[1725039239121,0.390826,58542.0,58541.0,0.00025606]
[1725039239432,0.436493,58542.0,58541.0,0.00025606]
[1725039239830,0.285413,58542.0,58541.0,0.00025606]
[1725039240727,0.2,58542.0,58541.0,0.44647006]
[1725039240924,0.006,58542.0,58541.0,0.44647006]
[1725039241318,0.211,58542.0,58541.0,0.44647006]
[1725039241924,0.213,58542.0,58541.0,0.44647006]
[1725039242536,0.013,58542.0,58541.0,0.64647006]
[1725039242728,0.013,58542.0,58541.0,0.44647006]
[1725039243247,0.014,58542.0,58541.0,0.44647006]
[1725039244324,0.007,58542.0,58541.0,1.52071006]
[1725039244622,0.007,58542.0,58541.0,2.12071006]
[1725039244829,0.16392,58545.0,58544.0,0.08541]
[1725039245031,0.16392,58545.0,58544.0,0.37082]
[1725039245244,0.16392,58545.0,58544.0,1.48326]
[1725039245540,0.16392,58545.0,58544.0,1.49326]
[1725039245731,0.085395,58555.0,58554.0,0.085392]
[1725039245986,0.085395,58555.0,58554.0,0.446192]
[1725039246234,0.085395,58555.0,58554.0,0.3608]
[1725039246431,0.085395,58555.0,58545.0,0.01]
[1725039246432,0.085407,58546.0,58545.0,0.01]
[1725039246740,0.285407,58546.0,58545.0,0.01]
[1725039247232,0.2,58546.0,58545.0,0.095408]
[1725039247460,0.2,58548.0,58545.0,0.01]
[1725039247640,0.002,58546.0,58545.0,0.095408]
[1725039248133,0.002,58546.0,58545.0,0.085408]
[1725039248723,0.002,58546.0,58545.0,0.968648]
[1725039248930,0.002,58546.0,58545.0,0.456208]
[1725039249135,0.003,58546.0,58545.0,0.968648]
[1725039249338,0.003,58546.0,58545.0,0.456208]
[1725039249568,0.003,58546.0,58545.0,0.968648]
[1725039249730,0.003,58546.0,58545.0,0.456208]
[1725039250965,0.003,58546.0,58545.0,0.3608]
[1725039250966,0.3194319,58546.0,58545.0,0.3608]
[1725039251249,0.288407,58546.0,58545.0,0.3608]
[1725039251541,0.57665557,58546.0,58545.0,0.3608]
[1725039251738,0.57765557,58546.0,58545.0,0.3608]
[1725039251934,0.49224857,58546.0,58545.0,0.3608]
[1725039252135,0.1973462,58546.0,58545.0,0.3608]
[1725039252330,0.005,58546.0,58545.0,0.3608]
[1725039252732,0.003,58546.0,58545.0,0.3608]
[1725039252985,0.008,58546.0,58545.0,0.3608]
[1725039253327,0.008,58546.0,58545.0,0.446208]
[1725039253727,0.01,58546.0,58545.0,0.446208]
[1725039253934,0.005,58546.0,58545.0,0.446208]
[1725039254135,0.009,58546.0,58545.0,0.446208]
[1725039255032,0.009,58546.0,58545.0,0.807008]
[1725039255539,0.004,58546.0,58545.0,0.807008]
[1725039255766,0.006,58546.0,58545.0,0.807008]
[1725039255951,0.003,58546.0,58545.0,0.807008]
[1725039256343,0.001,58546.0,58545.0,0.807008]
[1725039256536,0.003,58546.0,58545.0,0.807008]
[1725039259039,0.003,58546.0,58545.0,2.090264]
[1725039259353,0.003,58546.0,58545.0,2.004856]
[1725039259564,0.003,58546.0,58545.0,1.516556]
[1725039259757,0.003,58546.0,58545.0,1.526556]
[1725039260049,0.021,58546.0,58545.0,1.5565548]
[1725039260368,0.021,58546.0,58545.0,2.1565548]
[1725039260650,0.00025606,58551.0,58550.0,0.085401]
[1725039260846,0.00025606,58551.0,58550.0,0.446201]
[1725039261853,0.08565506,58551.0,58550.0,0.446201]
[1725039262253,0.00025606,58551.0,58550.0,0.446201]
[1725039262440,0.09965506,58551.0,58550.0,0.456201]
[1725039262649,0.11265506,58551.0,58550.0,0.456201]
[1725039262864,0.02725606,58551.0,58550.0,0.456201]
[1725039263950,0.02725606,58551.0,58550.0,0.446201]
[1725039263951,0.11265506,58551.0,58550.0,0.446201]
[1725039264251,0.11265506,58551.0,58545.0,0.3608]
[1725039264252,0.170814,58546.0,58545.0,0.3608]
[1725039264458,0.170814,58546.0,58541.0,0.00025606]
[1725039264459,0.170826,58542.0,58541.0,0.00025606]
[1725039264653,0.285413,58542.0,58541.0,0.00025606]
[1725039265537,0.4807592,58542.0,58541.0,0.00025606]
[1725039265755,0.4837592,58542.0,58541.0,0.00025606]
[1725039266998,0.54904825,58542.0,58541.0,0.00025606]
[1725039267461,0.57903187,58542.0,58541.0,0.00025606]
[1725039267951,0.67467187,58542.0,58541.0,0.00025606]
[1725039268146,0.61338282,58542.0,58541.0,0.00025606]
[1725039268461,0.42673391,58542.0,58541.0,0.00025606]
[1725039268657,0.42873391,58542.0,58541.0,0.00025606]
[1725039268983,0.43073391,58542.0,58541.0,0.00025606]
[1725039269554,0.34532091,58542.0,58541.0,0.00025606]
[1725039269854,0.33196982,58542.0,58541.0,0.08567006]
[1725039270253,0.13662362,58542.0,58541.0,0.08567006]
[1725039271052,0.04098362,58542.0,58541.0,0.08567006]
[1725039271963,0.03698362,58542.0,58541.0,0.08567006]
[1725039272143,0.04398362,58542.0,58541.0,0.08567006]
[1725039272521,0.04398362,58542.0,58541.0,0.44647006]
[1725039273361,0.014,58542.0,58541.0,0.44647006]
[1725039273553,0.014,58542.0,58541.0,1.64432406]
[1725039273859,0.014,58542.0,58541.0,1.72973806]
[1725039274353,0.014,58542.0,58541.0,1.73973806]
[1725039274750,0.204,58556.0,58553.0,0.085395]
[1725039274751,0.085396,58554.0,58553.0,0.085395]
[1725039275151,0.285396,58554.0,58553.0,0.085395]
[1725039276151,0.313396,58554.0,58553.0,0.085395]
[1725039277057,0.085398,58553.0,58551.0,0.3608]
[1725039278549,0.099398,58553.0,58551.0,0.3608]
[1725039278743,0.113398,58553.0,58551.0,0.3618]
[1725039278947,0.028,58553.0,58551.0,0.3618]
[1725039279154,0.028,58553.0,58552.0,0.085398]
[1725039279952,0.028,58553.0,58552.0,0.170796]
[1725039281153,0.028,58553.0,58552.0,0.171796]
[1725039281360,0.014,58553.0,58552.0,0.171796]
[1725039281550,0.028,58553.0,58552.0,0.086398]
[1725039281869,0.028,58553.0,58552.0,0.598758]
[1725039281870,0.15936364,58553.0,58552.0,0.598758]
[1725039282153,0.08926475,58553.0,58552.0,0.786056]
[1725039282363,0.08926475,58553.0,58552.0,0.700658]
[1725039282862,0.08926475,58553.0,58552.0,0.786056]
[1725039283244,0.08926475,58553.0,58552.0,1.386056]
[1725039283651,0.08926475,58553.0,58552.0,0.273696]
[1725039283858,0.08926475,58553.0,58552.0,0.786056]
[1725039284175,0.08926475,58553.0,58552.0,1.386056]
[1725039284460,0.08926475,58553.0,58552.0,0.188298]
[1725039284663,0.08926475,58553.0,58552.0,0.700658]
[1725039286154,0.08926475,58553.0,58552.0,0.086398]
[1725039288261,0.37466075,58553.0,58552.0,0.001]
[1725039288948,0.17466075,58553.0,58552.0,0.001]
[1725039289249,0.17466075,58553.0,58552.0,0.086398]
[1725039289667,0.08926475,58553.0,58552.0,0.086398]
[1725039289869,0.028,58553.0,58552.0,0.257194]
[1725039290065,0.028,58553.0,58552.0,0.474194]
[1725039290659,0.028,58553.0,58552.0,0.484194]
[1725039292863,0.028,58553.0,58552.0,1.596554]
[1725039293562,0.028,58553.0,58552.0,0.51460531]
[1725039297666,0.028,58553.0,58552.0,0.29760531]
[1725039297852,0.113396,58553.0,58552.0,0.086398]
[1725039298163,0.198792,58553.0,58552.0,0.001]
[1725039298872,0.113396,58553.0,58552.0,0.001]
[1725039299090,0.113396,58553.0,58552.0,0.086398]
[1725039300774,0.028,58553.0,58552.0,0.086398]
[1725039300952,0.028,58553.0,58552.0,0.171796]
[1725039302763,0.028,58553.0,58552.0,0.257194]
[1725039303263,0.028,58553.0,58552.0,0.364394]
[1725039303857,0.028,58553.0,58552.0,0.374394]
[1725039304070,0.028,58553.0,58552.0,0.29705011]
[1725039304264,0.028,58553.0,58552.0,0.086398]
[1725039305274,0.113396,58553.0,58552.0,0.086398]
[1725039306468,0.217596,58553.0,58552.0,0.086398]
[1725039306668,0.217596,58553.0,58552.0,0.001]
[1725039306886,0.24812782,58553.0,58552.0,0.001]
[1725039307073,0.30056168,58553.0,58552.0,0.001]
[1725039307268,0.14534486,58553.0,58552.0,0.001]
[1725039307570,0.23074086,58553.0,58552.0,0.086398]
[1725039311774,0.29199641,58553.0,58552.0,0.086398]
[1725039312285,0.178307,58553.0,58552.0,0.086398]
[1725039312325,0.178307,58553.0,58552.0,0.001]
[1725039313490,0.178307,58553.0,58552.0,0.086398]
[1725039313983,0.092911,58553.0,58552.0,0.086398]
[1725039314372,0.03053182,58553.0,58552.0,0.086398]
[1725039314571,0.08888,58557.0,58552.0,0.086398]
[1725039314781,0.08888,58557.0,58556.0,0.085392]
[1725039315186,0.08888,58557.0,58556.0,0.095392]
[1725039315480,0.08888,58557.0,58556.0,0.456192]
[1725039315698,0.08888,58557.0,58556.0,0.446192]
[1725039315988,0.00025606,58559.0,58558.0,0.085389]
[1725039316576,0.00025606,58559.0,58558.0,0.170778]
[1725039317077,0.00025606,58559.0,58558.0,0.180778]
[1725039317265,0.00725606,58559.0,58558.0,0.181778]
[1725039318078,0.02125606,58559.0,58558.0,0.182778]
[1725039318569,0.00725606,58559.0,58558.0,0.181778]
[1725039318777,0.02025606,58559.0,58558.0,0.182778]
[1725039319468,0.01925606,58559.0,58558.0,0.182778]
[1725039320176,0.11993524,58559.0,58558.0,0.181778]
[1725039320372,0.12693524,58559.0,58558.0,0.181778]
[1725039320579,0.13293524,58559.0,58558.0,0.182778]
[1725039320883,0.13293524,58559.0,58558.0,0.268167]
[1725039321477,0.11993492,58559.0,58558.0,0.267167]
[1725039321672,0.13293492,58559.0,58558.0,0.268167]
[1725039322674,0.13293492,58559.0,58558.0,0.087389]
[1725039322880,0.21832292,58559.0,58558.0,0.087389]
[1725039323577,0.50371092,58559.0,58558.0,0.002]
[1725039324074,0.55684029,58559.0,58558.0,0.002]
[1725039324676,0.47145229,58559.0,58558.0,0.002]
[1725039324980,0.41832292,58559.0,58558.0,0.002]
[1725039325176,0.13293492,58559.0,58558.0,0.172778]
[1725039326081,0.13293492,58559.0,58558.0,0.087389]
[1725039326379,0.13293737,58559.0,58558.0,0.172778]
[1725039326977,0.01925606,58559.0,58558.0,0.172778]
[1725039327978,0.01925606,58559.0,58558.0,0.258167]
[1725039328191,0.01925606,58559.0,58558.0,0.364467]
[1725039328499,0.01925606,58559.0,58558.0,0.876787]
[1725039328992,0.01925606,58559.0,58558.0,0.886787]
[1725039329596,0.01925606,58559.0,58558.0,0.374467]
[1725039331383,0.01925606,58559.0,58558.0,0.087389]
[1725039334980,0.10464406,58559.0,58558.0,0.087389]
[1725039335187,0.39003206,58559.0,58558.0,0.002]
[1725039335389,0.44246072,58559.0,58558.0,0.002]
[1725039335725,0.65286072,58559.0,58558.0,0.002]
[1725039335899,0.56747272,58559.0,58558.0,0.002]
[1725039336091,0.36747272,58559.0,58558.0,0.002]
[1725039336598,0.31504406,58559.0,58558.0,0.087389]
[1725039336783,0.36747141,58559.0,58558.0,0.087389]
[1725039337284,0.31504406,58559.0,58558.0,0.087389]
[1725039337689,0.346287,58559.0,58558.0,0.087389]
[1725039338893,0.050499,58559.0,58558.0,0.087389]
[1725039341683,0.050499,58559.0,58558.0,0.287389]
[1725039342126,0.050499,58559.0,58558.0,0.372778]
[1725039344802,1.018983,58559.0,58558.0,0.002]
[1725039345018,0.085408,58545.0,58544.0,0.3608]
[1725039345263,0.285408,58545.0,58544.0,0.3608]
[1725039345528,0.33783226,58545.0,58544.0,0.3608]
[1725039346093,0.33783226,58545.0,58544.0,0.3628]
[1725039346806,0.13784818,58545.0,58544.0,0.3628]
[1725039347009,0.085408,58545.0,58544.0,0.3628]
[1725039347508,0.11622434,58545.0,58544.0,0.3628]
[1725039347904,0.31622434,58545.0,58544.0,0.3628]
[1725039348109,0.36866452,58545.0,58544.0,0.3658]
[1725039348703,0.36866452,58545.0,58544.0,0.3628]
[1725039349010,0.36866452,58545.0,58544.0,0.3618]
[1725039349802,0.96651252,58545.0,58544.0,0.001]
[1725039349993,0.085427,58532.0,58531.0,0.022]
[1725039350265,0.370854,58532.0,58531.0,0.022]
[1725039350411,0.285427,58532.0,58531.0,0.022]
[1725039350718,0.4807732,58532.0,58531.0,0.022]
[1725039351217,1.6797602,58532.0,58531.0,0.036]
[1725039351403,1.6797602,58532.0,58526.0,0.00025606]
[1725039351404,0.085434,58527.0,58526.0,0.00025606]
[1725039351622,1.752834,58527.0,58526.0,0.00025606]
[1725039351810,1.152834,58527.0,58526.0,0.00025606]
[1725039352105,1.747834,58527.0,58526.0,0.00025606]
[1725039352320,1.147834,58527.0,58526.0,0.00025606]
[1725039352548,1.147834,58527.0,58513.0,0.5608]
[1725039352549,1.147834,58527.0,58515.0,0.085452]
[1725039352714,0.19,58522.0,58519.0,0.085446]
[1725039352898,0.1972,58521.0,58520.0,0.085445]
[1725039353103,0.1972,58521.0,58518.0,0.3608]
[1725039353104,0.285438,58525.0,58521.0,0.085443]
[1725039353713,0.285438,58525.0,58522.0,0.085441]
[1725039354604,0.03249775,58527.0,58523.0,0.3608]
[1725039354799,0.2,58526.0,58523.0,0.3608]
[1725039355308,0.002,58525.0,58524.0,0.085439]
[1725039356311,0.001,58525.0,58524.0,0.085439]
[1725039357514,0.2,58526.0,58524.0,0.085439]
[1725039357912,0.2,58526.0,58525.0,0.085437]
[1725039358813,0.201,58526.0,58525.0,0.085437]
[1725039359135,0.201,58526.0,58523.0,0.3608]
[1725039359448,0.2,58524.0,58523.0,0.3608]
[1725039360114,0.285439,58524.0,58523.0,0.44624]
[1725039360419,0.085449,58517.0,58509.0,0.004]
[1725039360627,0.085467,58505.0,58504.0,0.3608]
[1725039360805,0.285467,58505.0,58504.0,0.3608]
[1725039361110,0.2,58505.0,58504.0,0.3608]
[1725039361311,0.285467,58505.0,58504.0,0.3608]
[1725039362223,0.286467,58505.0,58504.0,0.3608]
[1725039362406,0.438027,58505.0,58504.0,0.3608]
[1725039363507,0.46890184,58505.0,58504.0,0.3608]
[1725039363704,0.31834184,58505.0,58504.0,0.3608]
[1725039364024,0.46890184,58505.0,58504.0,0.3608]
[1725039364217,0.085474,58500.0,58499.0,0.00025628]
[1725039364499,0.5404227,58500.0,58499.0,0.00025628]
[1725039364613,0.4549487,58500.0,58499.0,0.00025628]
[1725039364930,0.7108087,58500.0,58499.0,0.00025628]
[1725039365113,0.8198087,58500.0,58499.0,0.00025628]
[1725039365628,1.0201549,58500.0,58499.0,0.00025628]
[1725039366121,1.0271549,58500.0,58499.0,0.00025628]
[1725039366326,1.0271949,58500.0,58499.0,0.00025628]
[1725039366709,0.8765949,58500.0,58499.0,0.00025628]
[1725039367012,0.6536202,58500.0,58499.0,0.00025628]
[1725039367211,0.3728,58500.0,58499.0,0.08573128]
[1725039369119,0.3728,58500.0,58499.0,0.09573128]
[1725039369518,0.3728,58500.0,58499.0,0.08573128]
[1725039372557,0.012,58500.0,58499.0,0.08573128]
[1725039373227,0.012,58500.0,58499.0,0.44653128]
[1725039373419,1e-06,58500.0,58499.0,1.93032128]
[1725039373938,1e-06,58500.0,58499.0,2.01579628]
[1725039374238,1e-06,58500.0,58499.0,2.04425422]
[1725039374406,0.03297108,58505.0,58504.0,0.256404]
[1725039374610,0.03297108,58505.0,58504.0,0.827204]
[1725039374810,0.03297108,58505.0,58504.0,1.940004]
[1725039375719,0.02922264,58515.0,58509.0,0.085461]
[1725039375912,0.02922264,58515.0,58509.0,0.731722]
[1725039376415,0.004,58525.0,58513.0,0.17091]
[1725039376613,0.3648,58529.0,58513.0,0.73171]
[1725039376927,0.3648,58529.0,58513.0,1.84443]
[1725039377133,0.08752388,58514.0,58513.0,1.939885]
[1725039377428,0.3648,58529.0,58525.0,0.085437]
[1725039377617,0.00025628,58531.0,58525.0,1.331674]
[1725039377811,0.00025628,58531.0,58525.0,1.758837]
[1725039378138,0.00025628,58531.0,58525.0,1.168837]
[1725039378327,0.00025628,58531.0,58525.0,0.656237]
[1725039378528,0.00025628,58531.0,58525.0,1.168837]
[1725039378762,0.011,58526.0,58525.0,1.168837]
[1725039378989,0.011,58526.0,58525.0,1.768837]
[1725039379112,0.00025628,58531.0,58530.0,0.08543]
[1725039379319,0.00025628,58531.0,58530.0,0.64623]
[1725039380625,0.00025628,58531.0,58530.0,1.84422]
[1725039381023,0.01425628,58531.0,58530.0,1.84422]
[1725039381339,0.02825628,58531.0,58530.0,1.84422]
[1725039381636,0.004,58546.0,58545.0,0.085408]
[1725039381844,0.085399,58552.0,58549.0,0.085402]
[1725039381845,0.11968,58550.0,58549.0,0.085402]
[1725039382325,0.205081,58550.0,58549.0,0.085402]
[1725039382522,0.085404,58549.0,58545.0,0.807008]
[1725039382914,0.085404,58548.0,58545.0,0.807008]
[1725039383624,0.011,58546.0,58545.0,0.808008]
[1725039384121,0.01,58546.0,58545.0,0.808008]
[1725039384321,0.085404,58548.0,58546.0,0.085406]
[1725039384656,0.085404,58548.0,58546.0,0.095406]
[1725039384657,0.096404,58548.0,58546.0,0.095406]
[1725039385030,0.011,58548.0,58547.0,0.335405]
[1725039385323,0.02927037,58552.0,58547.0,0.25]
[1725039385517,0.085398,58552.0,58551.0,0.3608]
[1725039386193,0.085398,58552.0,58545.0,0.002]
[1725039386201,0.085404,58548.0,58545.0,0.002]
[1725039386552,0.085404,58548.0,58546.0,0.01]
[1725039386557,0.085404,58548.0,58546.0,0.095406]
[1725039386741,0.085404,58548.0,58547.0,0.085405]
[1725039387226,0.109404,58548.0,58547.0,0.086405]
[1725039387521,0.109404,58548.0,58547.0,0.001]
[1725039388310,0.109404,58548.0,58547.0,0.002]
[1725039388617,0.16184302,58548.0,58547.0,0.002]
[1725039389217,0.18987155,58548.0,58547.0,0.002]
[1725039389519,0.13743253,58548.0,58547.0,0.002]
[1725039390513,0.05202853,58548.0,58547.0,0.087405]
[1725039393848,0.024,58548.0,58547.0,1.28521]
[1725039394332,0.024,58548.0,58547.0,1.31337946]
[1725039394526,0.024,58548.0,58547.0,1.32337946]
[1725039395051,0.019,58548.0,58547.0,1.32337946]
[1725039395232,0.019,58548.0,58547.0,1.40878446]
[1725039395525,0.01,58548.0,58547.0,1.40778446]
[1725039395727,0.019,58548.0,58547.0,1.40878446]
[1725039396319,0.018,58548.0,58547.0,1.40878446]
[1725039397035,0.009,58548.0,58547.0,1.379615]
[1725039397218,0.017,58548.0,58547.0,0.18281]
[1725039400027,0.017,58548.0,58547.0,0.087405]
[1725039400248,0.102404,58548.0,58547.0,0.087405]
[1725039400418,0.15483754,58548.0,58547.0,0.087405]
[1725039400925,0.06943354,58548.0,58547.0,0.17281]
[1725039401240,0.06943442,58548.0,58547.0,0.17281]
[1725039401623,0.06943442,58548.0,58547.0,0.087405]
[1725039401828,0.06943442,58548.0,58547.0,0.17281]
[1725039402234,0.017,58548.0,58547.0,0.087405]
[1725039404240,0.195304,58548.0,58547.0,0.001]
[1725039404544,0.195304,58548.0,58547.0,0.086405]
[1725039405323,0.1099,58548.0,58547.0,0.086405]
[1725039405529,0.008,58548.0,58547.0,0.17181]
[1725039406867,0.008,58548.0,58547.0,1.369615]
[1725039407161,0.008,58548.0,58547.0,0.871215]
[1725039407293,0.008,58548.0,58547.0,0.881215]
[1725039408648,0.008,58548.0,58547.0,0.90935838]
[1725039408941,0.0290251,58554.0,58553.0,0.085396]
[1725039409143,0.00025628,58555.0,58554.0,0.085395]
[1725039410038,0.02925841,58555.0,58554.0,0.085395]
[1725039410247,0.170808,58548.0,58547.0,0.001]
[1725039410455,0.22323878,58548.0,58547.0,0.001]
[1725039410761,0.22324616,58548.0,58547.0,0.001]
[1725039410931,0.13784216,58548.0,58547.0,0.001]
[1725039411134,0.05243816,58548.0,58547.0,0.086405]
[1725039411552,0.05143816,58548.0,58547.0,0.085405]
[1725039412044,0.13684216,58548.0,58547.0,0.085405]
[1725039412461,0.14384216,58548.0,58547.0,0.086405]
[1725039413672,0.17204318,58548.0,58547.0,0.086405]
[1725039413852,0.08663918,58548.0,58547.0,0.086405]
[1725039415672,0.03520102,58548.0,58547.0,0.086405]
[1725039416683,0.08763513,58548.0,58547.0,0.086405]
[1725039417349,0.03520102,58548.0,58547.0,0.086405]
[1725039421673,0.03520102,58548.0,58547.0,0.17181]
[1725039421843,0.007,58548.0,58547.0,0.17181]
[1725039422342,0.007,58548.0,58547.0,0.18181]
[1725039422850,0.007,58548.0,58547.0,0.267215]
[1725039424355,0.007,58548.0,58547.0,0.883715]
[1725039425344,0.007,58548.0,58547.0,1.483715]
[1725039425557,0.007,58548.0,58547.0,0.267215]
[1725039425880,0.177808,58548.0,58547.0,0.001]
[1725039426467,0.690208,58548.0,58547.0,0.001]
[1725039426651,1.39473211,58548.0,58547.0,0.001]
[1725039426857,1.94593611,58548.0,58547.0,0.001]
[1725039427049,0.170816,58545.0,58544.0,0.00025628]
[1725039427260,0.13784725,58545.0,58544.0,0.00025628]
[1725039427448,0.085407,58546.0,58545.0,0.085408]
[1725039427651,0.2807542,58545.0,58544.0,0.00025628]
[1725039427845,0.43919345,58545.0,58544.0,0.00025628]
[1725039428049,0.24384725,58545.0,58544.0,0.00025628]
[1725039428569,0.44419345,58545.0,58544.0,0.00025628]
[1725039429768,0.72960145,58545.0,58544.0,0.00025628]
[1725039429954,1.84204145,58545.0,58544.0,0.00025628]
[1725039430271,1.84204145,58545.0,58531.0,0.3608]
[1725039430272,0.2,58534.0,58531.0,0.3608]
[1725039430557,0.0985,58533.0,58531.0,0.3608]
[1725039430754,0.285427,58532.0,58531.0,0.3608]
[1725039431659,0.4807732,58532.0,58531.0,0.3698]
[1725039431858,0.2807732,58532.0,58531.0,0.3698]
[1725039432061,0.13788259,58532.0,58531.0,0.5698]
[1725039432357,0.06145559,58532.0,58531.0,0.647229]
[1725039432771,0.06145559,58532.0,58531.0,0.3618]
[1725039433174,0.17605733,58532.0,58531.0,0.3618]
[1725039433271,0.1760576,58532.0,58531.0,0.3618]
[1725039434161,0.0906306,58532.0,58531.0,0.5618]
[1725039434355,0.0906306,58532.0,58531.0,0.647229]
[1725039434664,0.0956306,58532.0,58531.0,0.647229]
[1725039434857,0.0956306,58532.0,58531.0,0.447229]
[1725039435363,0.2956306,58532.0,58531.0,0.3618]
[1725039435558,0.7639308,58532.0,58531.0,0.001]
[1725039435771,0.170868,58527.0,58526.0,0.00025628]
[1725039436066,0.170886,58521.0,58520.0,0.3608]
[1725039436259,0.42334186,58521.0,58520.0,0.3608]
[1725039436780,0.61868806,58521.0,58520.0,0.3608]
[1725039436914,0.085451,58516.0,58507.0,0.004]
[1725039437090,0.085459,58511.0,58509.0,0.08546]
[1725039437362,0.05245586,58511.0,58510.0,0.085459]
[1725039437769,0.05245586,58513.0,58512.0,0.085456]
[1725039438163,0.05245586,58513.0,58512.0,0.285456]
[1725039438352,0.00025628,58517.0,58515.0,0.085451]
[1725039438567,0.08146679,58517.0,58515.0,0.085451]
[1725039438856,0.05171214,58517.0,58516.0,0.08545]
[1725039439074,0.2,58520.0,58510.0,0.3608]
[1725039439270,0.085458,58511.0,58508.0,0.085461]
[1725039439560,0.2,58514.0,58511.0,0.085457]
[1725039439561,0.085454,58514.0,58511.0,0.085457]
[1725039439956,0.085454,58514.0,58512.0,0.085456]
[1725039440061,0.00025628,58518.0,58512.0,0.2]
[1725039440158,0.00025628,58518.0,58515.0,0.446252]
[1725039440360,0.00025628,58518.0,58517.0,0.085449]
[1725039442875,0.00225628,58518.0,58517.0,0.085449]
[1725039444587,0.00225628,58518.0,58517.0,0.170898]
[1725039446164,0.00225628,58518.0,58517.0,0.085449]
[1725039451076,0.00225628,58518.0,58517.0,0.285449]
[1725039452976,0.20225628,58518.0,58517.0,0.085449]
[1725039453188,0.28770428,58518.0,58517.0,0.085449]
[1725039453373,0.14016687,58518.0,58517.0,0.085449]
[1725039453689,0.08770428,58518.0,58517.0,0.085449]
[1725039454314,0.28770428,58518.0,58510.0,0.3608]
[1725039454607,0.28546,58511.0,58510.0,0.085458]
[1725039454771,0.28546,58511.0,58503.0,0.5608]
[1725039454772,0.2,58511.0,58503.0,0.5608]
[1725039454972,0.2,58511.0,58503.0,0.3608]
[1725039454973,0.085464,58507.0,58503.0,0.3608]
[1725039455270,0.085464,58507.0,58503.0,0.446269]
[1725039455490,0.085464,58507.0,58505.0,0.085465]
[1725039455665,0.2,58508.0,58507.0,0.085464]
[1725039455882,0.085458,58512.0,58510.0,0.085458]
[1725039456083,0.085458,58511.0,58510.0,0.085458]
[1725039456284,0.3953462,58515.0,58506.0,0.20025628]
[1725039456579,0.085458,58512.0,58510.0,0.085459]
[1725039456877,0.001,58511.0,58510.0,0.098459]
[1725039457303,0.004,58511.0,58510.0,0.090459]
[1725039457516,0.004,58511.0,58510.0,0.085459]
[1725039457876,0.085458,58511.0,58510.0,0.085459]
[1725039458280,0.091458,58511.0,58510.0,0.086459]
[1725039460283,0.01,58511.0,58510.0,0.371918]
[1725039460477,0.01,58511.0,58510.0,0.286459]
[1725039460872,0.01,58511.0,58510.0,0.296459]
[1725039462381,0.01,58511.0,58510.0,0.381918]
[1725039462881,0.01,58511.0,58510.0,0.467377]
[1725039463078,0.01,58511.0,58510.0,1.665556]
[1725039463377,0.009,58511.0,58510.0,1.665556]
[1725039464678,0.00025628,58518.0,58517.0,0.170898]
[1725039464875,0.00025628,58518.0,58517.0,0.731698]
[1725039465480,0.00025628,58518.0,58517.0,0.741698]
[1725039466484,0.00025628,58518.0,58517.0,1.339827]
[1725039467192,0.01925628,58518.0,58517.0,1.341827]
[1725039467698,0.01725628,58518.0,58517.0,1.341827]
[1725039467888,0.01325628,58518.0,58517.0,1.341827]
[1725039468283,0.01025628,58518.0,58517.0,1.340827]
[1725039468480,0.11347464,58532.0,58522.0,0.085442]
[1725039468784,0.085429,58531.0,58530.0,0.446229]
[1725039470486,0.110429,58531.0,58530.0,0.447229]
[1725039470886,0.025,58531.0,58530.0,0.447229]
[1725039474089,0.110429,58531.0,58530.0,0.447229]
[1725039474820,0.110429,58531.0,58530.0,0.3618]
[1725039475100,0.195858,58531.0,58530.0,0.3618]
[1725039476598,0.195858,58531.0,58530.0,0.001]
[1725039480407,0.195858,58531.0,58517.0,0.004]
[1725039480408,0.170896,58518.0,58517.0,0.004]
[1725039480601,0.085464,58507.0,58506.0,0.3608]
[1725039480903,0.285464,58507.0,58506.0,0.3608]
[1725039481516,0.085474,58500.0,58497.0,0.085477]